Workbook

Sheet Geral Vigilância
A6: Prestação de serviços continuados empresa especializada na prestação de serviços continuados de vigilância armada, diurna e noturna, a ser executada nas dependências do pátio do Sindicato Rural de Anápolis, localizado no Parque de Exposição Agropecuário de Anápolis, estado de Goiás.
A11: ANEXO I - A: QUADRO RESUMO DE FORMAÇÃO DE PREÇOS
A13: Discriminação dos Postos | C13: Nº de Postos | D13: Valor do Posto | E13: Valor Mensal
A14: Posto Fixo de 24 (vinte e quatro) horas diárias, inclusive aos sábados, domingos e feriados, envolvendo 2 (dois) vigilantes em turnos revezados de 12 (doze) x 36 (trinta e seis) horas. | C14: 4 | D14: ='Posto Fixo 24 h'!E93 -> 21446.29 | E14: =C14*D14 -> 85785.16
A17: TOTAL MENSAL: | E17: =SUM(E14:E14) -> 85785.16
A18: TOTAL 12 MESES: | E18: =SUM(E17*12) -> 1029421.92

Sheet Quadro Resumo
A6: Prestação de serviços continuados empresa especializada na prestação de serviços continuados de vigilância armada, diurna e noturna, a ser executada nas dependências do pátio do Sindicato Rural de Anápolis, localizado no Parque de Exposição Agropecuário de Anápolis, estado de Goiás
A11: ANEXO I - B: QUADRO RESUMO - VALOR MENSAL DOS SERVIÇOS
A13: Tipo de Serviço | C13: Valor proposto por empregado | D13: Quant. de empregados por posto | E13: Valor proposto por posto | F13: Quant. de postos | G13: Valor total do serviço
C14: ( A ) | D14: ( B ) | E14: ( C ) | F14: ( D ) | G14: (E = C x D)
A15: 1 | B15: Posto Fixo de 24 (vinte e quatro) horas diárias, inclusive aos sábados, domingos e feriados, envolvendo 2 (dois) vigilantes em turnos revezados de 12 (doze) x 36 (trinta e seis) horas. | C15: =ROUND(E15/D15,2) -> 10723.15 | D15: 2 | E15: ='Posto Fixo 24 h'!E93 -> 21446.29 | F15: 4 | G15: =E15*F15 -> 85785.16
A16: Valor Mensal dos Serviços : | G16: =SUM(G15:G15) -> 85785.16

Sheet Posto Fixo 24 h
A5: Prestação de serviços continuados empresa especializada na prestação de serviços continuados de vigilância armada, diurna e noturna, a ser executada nas dependências do pátio do Sindicato Rural de Anápolis, localizado no Parque de Exposição Agropecuário de Anápolis, estado de Goiás
A10: ANEXO I - C : PLANILHA DE CUSTOS E FORMAÇÃO DE PREÇOS
A11: PORTARIA Nº 07 DE 09/03/2011 - SLTI/MPOG
A13: DISCRIMINAÇÃO DOS SERVIÇOS (Dados referentes à contratação)
A14: A | B14: Data de apresentação da proposta (dia/mês/ano)
A15: B | B15: Município/UF | E15: Anápolis-GO
A16: C | B16: Ano Acordo, Convenção ou Sentença Normativa em Dissídio Coletivo | E16: 2021
A17: D | B17: Nº de meses de execução contratual | E17: 12 meses
A20: IDENTIFICAÇÃO DO SERVIÇO
A21: Tipo de serviço | C21: Unidade de Medida | D21: Quantidade total a contratar (em função da unidade de medida)
A23: Vigilância do Escritório Central (Nas obras civis, instalações dos canteiros de obras e dos equipamentos hidromecânicos do Eixo Norte e Eixo Leste do PISF) | C23: Posto Fixo | D23: 2
A26: MÃO-DE-OBRA VINCULADA À EXECUÇÃO CONTRATUAL
A27: Descrição:
A28: Posto Fixo de 24 (vinte e quatro) horas diárias, inclusive aos sábados, domingos e feriados, envolvendo 2 (dois) vigilantes em turnos revezados de 12 (doze) x 36 (trinta e seis) horas.
A30: Dados complementares para composição dos custos referente à mão de obra
A31: 1 | B31: Tipo de Serviço | D31: Vigilância Patrimonial | G31: Hora trabalhada = salario / 200
A32: 2 | B32: Classificação Brasileira de Ocupações (CBO) | D32: 5173-30 | G32: =G40/200 -> 7.71 | H32: / hora
A33: 3 | B33: Salário Normativo da Categoria Proifissinal | D33: 1408.24 | G33: Adic Noturno = 7,71*20%= | H33: =7.71*0.2 -> 1.542
A34: 4 | B34: Categoria profissional (vinculada à execução contratual) | D34: Vigilante
A35: 5 | B35: Data-base da categoria (dia/mês/ano) | D35: 2021-01-01
A38: MÓDULO 1: COMPOSIÇÃO DA REMUNERAÇÃO
A39: ITEM | B39: DESCRIÇÃO | C39: Valor Unitário (R$) | D39: Quantidade | E39: Valor Total (R$) | G39: Salario | H39: Encargo | I39: Salário s/ enc.
A40: A | B40: Salário Base (CCT 2021 - Cláusula 3ª) | C40: 1408.24 | D40: 4 | E40: =C40*D40 -> 5632.96 | G40: 1541.51 | H40: 0.7281 | I40: =G40*H40 -> 1122.37
A41: B | B41: Adicional de Periculosidade (CCT 2021 - cláusula 3ª) | C41: =C40*0.3 -> 422.47 | D41: 4 | E41: =C41*D41 -> 1689.88
A42: C | B42: Adicional Noturno (CCT 2021 - cláusula 43ª) | C42: =7*4.345*8*1.54/2 -> 187.36 | D42: 2 | E42: =C42*D42 -> 374.72
A43: D | B43: Hora Noturna Reduzida | C43: =(1*30.42*(((C40+C41)/220)+((C40+C41)/220)*0.2))/2 -> 151.88 | D43: 2 | E43: =C43*D43 -> 303.76
A44: E | B44: Adicional sobre Hora Noturna Reduzida | C44: =C43*0.2 -> 30.38 | D44: 2 | E44: =C44*D44 -> 60.76
A45: F | B45: Intervalo intrajornada (CCT 2021 - Cláusula 42ª) - (CCT 2021 - Cláusula 42ª) | C45: =(((C40+C41)/220*1.5))*15 -> 187.23 | D45: 4 | E45: =C45*D45 -> 748.92
A46: G | B46: DSR sobre Adicionais Noturnos (CCT 2021 - cláusula 42ª ) | C46: =C42/6 -> 31.23 | D46: 2 | E46: 62.46
A47: H | B47: DSR sobre intrajornada (CCT 2021 - cláusula 42ª) | C47: 24.58 | D47: 4 | E47: =C47*D47 -> 98.32
A48: I | B48: Feriados trabalhados (CCT 2021 - cláusula 42ª) | C48: =((((C40+C41)/220)*2)*12*1.17)/2 -> 116.83 | D48: 4 | E48: =C48*D48 -> 467.32
A49: Total da Remuneração Mensal - Total (01 Posto): | E49: =SUM(E40:E48) -> 9439.1
A51: MÓDULO 2: BENEFÍCIOS MENSAIS E DIÁRIOS
A52: ITEM | B52: DESCRIÇÃO | C52: Valor Unitário (R$) | D52: Quantidade | E52: Valor Total (R$)
A53: A | B53: Vale Transporte (parcela da empresa) | C53: =(3.5*2*15)-(C40*6%) -> 20.51 | D53: 2 | E53: =C53*D53 -> 41.02
A54: B | B54: Auxílio alimentação (Vales, cesta básica, etc.) - CCT 2021 - cláusula 3ª - Parágrafo 2 | C54: 396 | D54: 2 | E54: =C54*D54 -> 792
A55: C | B55: Assistência médica/social | C55: 40.96 | D55: 2 | E55: =C55*D55 -> 81.92
A56: D | B56: Auxílio creche | C56: - | D56: - | E56: -
A57: E | B57: Seguro de vida, invalidez e funeral | C57: 16.08 | D57: 2 | E57: =C57*D57 -> 32.16
A58: F | B58: Outros (especificar) | C58: - | D58: - | E58: -
A59: Total de Benefícios Mensais e Diários (01 Posto): | E59: =SUM(E53:E58) -> 947.1
A60: Nota: o valor informado deverá ser o custo real do insumo (descontado o valor eventualmente pago pelo empregado).
A62: MÓDULO 3: INSUMOS DIVERSOS
A63: ITEM | B63: DESCRIÇÃO | C63: Valor Unitário (R$) | D63: Quantidade | E63: Valor Total (R$)
A64: A | B64: Uniformes | C64: =Insumos!I6 -> 48.48 | D64: 2 | E64: =C64*D64 -> 96.96
A65: B | B65: Armas, materiais e equipamentos, inclusive de proteção individual (EPI) | C65: =Insumos!I12 -> 32.41 | D65: 2 | E65: =C65*D65 -> 64.82
A66: Total de Insumos Diversos (01 Posto): | E66: =SUM(E64:E65) -> 161.78
A67: Nota: Valores mensais por empregado.
A69: 4 | B69: MÓDULO 4: ENCARGOS SOCIAIS E TRABALHISTAS - QUADRO-RESUMO | D69: % | E69: Valor (R$)
A70: 4.1 | B70: GRUPO "A" | D70: ='Encargos Sociais'!D26 -> 0.378 | E70: ='Encargos Sociais'!E26 -> 3567.98
A71: 4.2 | B71: GRUPO "B" | D71: ='Encargos Sociais'!D36 -> 0.1727 | E71: ='Encargos Sociais'!E36 -> 1630.13
A72: 4.3 | B72: GRUPO "C" | D72: ='Encargos Sociais'!D44 -> 0.1067 | E72: ='Encargos Sociais'!E44 -> 1007.15
A73: 4.4 | B73: GRUPO "D" | D73: ='Encargos Sociais'!D50 -> 0.0692 | E73: ='Encargos Sociais'!E50 -> 616.37
A74: TOTAL - Encargos Sociais e Trabalhistas: | D74: =SUM(D70:D73) -> 0.7266 | E74: =SUM(E70:E73) -> 6821.63
A76: 5 | B76: MÓDULO 5: CUSTOS INDIRETOS, TRIBUTOS E LUCRO | D76: % | E76: Valor (R$)
A77: A | B77: Custos Indiretos (CI) | D77: 0.06 | E77: =D77*(E49+E59+E66+E74) -> 1042.18
A78: B | B78: Tributos (percentual sobre o valor do faturamento)
A79: B.1 | B79: Tributos Federais (COFINS/PIS) | D79: 0.0365 | E79: =D102 -> 782.79
A80: B.2 | B80: Tributos Estaduais (especificar) | D80: 0 | E80: =D80*(E49+E59+E66+E74+E77+E82) -> 0
A81: B.3 | B81: Tributos Municipais (ISSQN ou ISS) | D81: 0.05 | E81: =D103 -> 1072.31
A82: C | B82: Lucro (L) | D82: 0.0679 | E82: =D82*(E49+E59+E66+E74) -> 1179.4
A83: TOTAL - Custos Indiretos, Tributos e Lucro | D83: =SUM(D77:D82) -> 0.2144 | E83: =SUM(E77:E82) -> 4076.68
A85: Quadro Resumo do Custo
A86: Mão de obra vinculada à execução contratual (Valor para 01 Posto = 04 Empregados) | E86: Valor (R$)
A87: A | B87: Módulo 1 – Composição da Remuneração | E87: =E49 -> 9439.1
A88: B | B88: Módulo 2 – Benefícios Mensais e Diários | E88: =E59 -> 947.1
A89: C | B89: Módulo 3 – Insumos Diversos (uniformes e outros) | E89: =E66 -> 161.78
A90: D | B90: Módulo 4 – Encargos Sociais e Trabalhistas | E90: =E74 -> 6821.63
A91: Subtotal (A + B + C + D): | E91: =SUM(E87:E90) -> 17369.61
A92: E | B92: Módulo 5 – Custos indiretos, tributos e lucro | E92: =E83 -> 4076.68
A93: Valor Total de Posto Fixo de 24 (vinte e quatro) horas diárias, inclusive aos sábados, domingos e feriados, envolvendo 4 (quatro) vigilantes em turnos revezados de 12 (doze) x 36 (trinta e seis) horas: | E93: =ROUND(E91+E92,2) -> 21446.29
A98: CÁLCULO PIS/COFINS
A99: P0 = (MÓD 1 + MÓD 2 + MÓD 3 + MÓD 4) + (CI) + (L) | D99: =E49+E59+E66+E74+E77+E82 -> 19591.19
A100: P1 = P0/(1 - 0,0865) | D100: =D99/(1-0.0865) -> 21446.29
A101: T = P1 - P0 | D101: =D100-D99 -> 1855.1
A102: COFINS/PIS = (3,65/8,65) x T | D102: =(3.65/8.65)*D101 -> 782.79
A103: ISS = (5,00/8,65) x T | D103: =(5/8.65)*D101 -> 1072.31

Sheet Encargos Sociais
A5: Prestação de serviços continuados empresa especializada na prestação de serviços continuados de vigilância armada, diurna e noturna, a ser executada nas dependências do pátio do Sindicato Rural de Anápolis, localizado no Parque de Exposição Agropecuário de Anápolis, estado de Goiás.
A10: MÓDULO 4: ENCARGOS SOCIAIS E TRABALHISTAS
A12: Total da Remuneração Mensal - Total (01 Posto): | E12: ='Posto Fixo 24 h'!$E$49 -> 9439.1
A14: MÓDULO 4: ENCARGOS SOCIAIS E TRABALHISTAS - ENCARGOS SINAPI 2021 -GO
A15: NOTA: Os percentuais dos encargos previdenciários e FGTS, a serem preenchidos na coluna %, são aqueles estabelecidos pela legislação vigente, incidentes sobre a remuneração
A16: 4.1 | B16: GRUPO "A" | D16: % | E16: Valor (R$)
A17: A | B17: INSS (Art. 22 inciso I da Lei 8.212/91) | D17: 0.2 | E17: =D17*$E$12 -> 1887.82
A18: B | B18: FGTS (Art. 15 da Lei 8030/90 art. 7° inciso III CF/88) | D18: 0.08 | E18: =D18*$E$12 -> 755.13
A19: C | B19: Riscos Ambientais do Trabalho - RAT x FAP - (Decreto 3.048/1999, Anexo V e Decreto 6.957/2009) | D19: 0.03 | E19: 283.17
A20: D | B20: Salário Educação (Art. 3° inciso I Decreto 87.043/) | D20: 0.025 | E20: 235.98
A21: E | B21: SESC/SESI (Art. 3° da Lei 8036/90) | D21: 0.015 | E21: 141.59
A22: F | B22: SENAC/SENAI (Decreto 2.318/86) | D22: 0.01 | E22: 94.39
A23: G | B23: SEBRAE (Art. 8° Lei 8029/90 e 8154 de 28/12/90) | D23: 0.006 | E23: 56.63
A24: H | B24: SECONCI | D24: 0.01 | E24: 94.39
A25: I | B25: INCRA (Lei 7787 de 30/06/890e DL 1146/70) | D25: 0.002 | E25: 18.88
A26: TOTAL - Grupo A: | D26: =SUM(D17:D25) -> 0.378 | E26: =SUM(E17:E25) -> 3567.98
A28: 4.2 | B28: GRUPO "B" | D28: % | E28: Valor (R$)
A29: A | B29: Férias e Um Terço Constitucional | D29: 0.0754 | E29: =D29*$E$12 -> 711.71
A30: B | B30: Auxílio Doença | D30: 0.0067 | E30: =D30*$E$12 -> 63.24
A31: C | B31: Licença Paternidade | D31: 0.0006 | E31: 5.66
A32: D | B32: Faltas Legais | D32: 0.0056 | E32: 52.86
A33: E | B33: Acidente de Trabalho | D33: 0.0008 | E33: 7.55
A34: F | B34: Salário Maternidade | D34: 0.0003 | E34: 2.83
A35: G | B35: 13º Salário | D35: 0.0833 | E35: 786.28
A36: TOTAL - Grupo B: | D36: =SUM(D29:D35) -> 0.1727 | E36: =SUM(E29:E35) -> 1630.13
A38: 4.3 | B38: GRUPO "C" | D38: % | E38: Valor (R$)
A39: A | B39: Aviso Prévio Indenizado | D39: 0.044 | E39: =D39*$E$12 -> 415.32
A40: B | B40: Aviso Prévio Trabalhado | D40: 0.001 | E40: =D40*$E$12 -> 9.44
A41: C | B41: Férias Indenizada | D41: 0.0297 | E41: =D41*$E$12 -> 280.34
A42: D | B42: Indenização Adicional | D42: 0.0037 | E42: =D42*$E$12 -> 34.92
A43: C | B43: Indenização (rescisões sem justa causa) - Multa FGTS + 10% LC nº 110/01 | D43: 0.0283 | E43: =D43*$E$12 -> 267.13
A44: TOTAL - Grupo C: | D44: =SUM(D39:D43) -> 0.1067 | E44: =SUM(E39:E43) -> 1007.15
A46: GRUPO "D"
A47: 4.4 | B47: GRUPO "D" | D47: % | E47: Valor (R$)
A48: A | B48: Incidência do grupo "A" sobre o grupo "B" | D48: 0.0653 | E48: =D48*$E$12 -> 616.37
A49: B | B49: Reincidência de Grupo A sobre Aviso Prévio Trabalhado e Reincidência do FGTS sobre Aviso Prévio Indenizado | D49: 0.0039 | E49: =D49*$E$12 -> 36.81
A50: TOTAL - Grupo D: | D50: =SUM(D48:D49) -> 0.0692 | E50: =SUM(E48:E48) -> 616.37
A53: 4 | B53: (QUADRO-RESUMO) MÓDULO 4: ENCARGOS SOCIAIS E TRABALHISTAS | D53: % | E53: Valor (R$)
A54: 4.1 | B54: GRUPO "A" | D54: =D26 -> 0.378 | E54: =E26 -> 3567.98
A55: 4.2 | B55: GRUPO "B" | D55: =D36 -> 0.1727 | E55: =E36 -> 1630.13
A56: 4.3 | B56: GRUPO "C" | D56: =D44 -> 0.1067 | E56: =E44 -> 1007.15
A57: 4.4 | B57: GRUPO "D" | D57: =D50 -> 0.0692 | E57: =E50 -> 616.37
A58: TOTAL - Encargos Sociais e Trabalhistas: | D58: =SUM(D54:D57) -> 0.7266 | E58: =SUM(E54:E57) -> 6821.63

Sheet Insumos
A1: Cotações de Preços de Insumos
A2: Referência: Cotação de preços em maio de 2021
A5: Materiais e equipamentos para os postos de vigilância armada: | C5: Cotação 1 | D5: Cotação 2 | E5: Cotação 3 | F5: Mediana (R$) | G5: Consumo anual | H5: Consumo Mensal | I5: Custo Mensal
A6: 1 | B6: Uniforme | I6: =SUM(I7:I11) -> 48.48
A7: 1.1 | B7: Camisa | C7: 70.63 | D7: 78.98 | E7: 110 | F7: =MEDIAN(C7:E7) -> 78.98 | G7: 2 | H7: =G7/12 -> 0.17 | I7: =H7*F7 -> 13.43
A8: 1.2 | B8: camisa Interna (malha) | C8: 34.94 | D8: 35.99 | E8: 24 | F8: 34.9 | G8: 2 | H8: =G8/12 -> 0.17 | I8: =H8*F8 -> 5.93
A9: 1.3 | B9: Calça | C9: 69.48 | D9: 108 | E9: 99 | F9: =MEDIAN(C9:E9) -> 99 | G9: 2 | H9: =G9/12 -> 0.17 | I9: =H9*F9 -> 16.83
A10: 1.4 | B10: Par de botas (coturnos) | C10: 182 | D10: 78.9 | E10: 75.25 | F10: 89.9 | G10: 1 | H10: =G10/12 -> 0.08 | I10: =H10*F10 -> 7.19
A11: 1.5 | B11: Boné | C11: 32.85 | D11: 29.99 | E11: 22 | F11: 29.99 | G11: 2 | H11: =G11/12 -> 0.17 | I11: =H11*F11 -> 5.1
A12: 2 | B12: Armas, materiais e equipamentos, inclusive de proteção individual (EPI): | H12: =G12/12 -> 0 | I12: =SUM(I13:I32) -> 32.41
A13: 2.1 | B13: 2.1. Apito de metal, com cordão trançado | C13: 11.42 | D13: 11.42 | E13: 9.99 | F13: 11.42 | G13: =1/2 -> 0.5 | H13: =G13/12 -> 0.04 | I13: =H13*F13 -> 0.46
A14: 2.2 | B14: 2.2. Livro de Ocorrências | C14: 11.9 | D14: 13.41 | E14: 22 | F14: 13.41 | G14: =(12/3)/4 -> 1 | H14: 0.08 | I14: 1.07
A15: 2.3 | B15: 2.3. Revólver calibre 38 com, no mínimo, seis tiros e cano de três polegadas | C15: 3999 | D15: 3277.5 | E15: 3870 | F15: 3870 | G15: =(1/5)/4 -> 0.05 | H15: 0 | I15: 0
A16: 2.4 | B16: 2.4. Jet-Loader (carregador rápido) compatível com armamento | C16: 52.93 | D16: 56.9 | E16: 50 | F16: 52.93 | G16: =1/5/4 -> 0.05 | H16: 0 | I16: 0
A17: 2.5 | B17: 2.5. Porta Jet-Loader (carregador rápido) compatível com armamento | C17: 38.25 | D17: 45 | E17: 40.95 | F17: 40.95 | G17: =(1/2) -> 0.5 | H17: 0.04 | I17: 1.64
A18: 2.6 | B18: 2.6. Coldre | C18: 37.9 | D18: 59.8 | E18: 81.9 | F18: 59.8 | G18: =1/2 -> 0.5 | H18: 0.04 | I18: 2.39
A19: 2.7 | B19: 2.7. Porta Tonfa | C19: 15.3 | D19: 18 | E19: 19.9 | F19: 18 | G19: =1/2 -> 0.5 | H19: 0.04 | I19: 0.72
A20: 2.8 | B20: 2.8. Cinto Operacional adequado ao armamento e equipamentos fornecidos | C20: 126 | D20: 94.05 | E20: 39.9 | F20: 94.05 | G20: =1/2 -> 0.5 | H20: 0.04 | I20: 3.76
A21: 2.9 | B21: 2.9. Tonfa em fibra | C21: 37 | D21: 50.31 | E21: 29 | F21: 37 | G21: =(1/5) -> 0.2 | H21: 0.02 | I21: 0.74
A22: 2.10 | B22: 2.10. Munições de calibre 38 (10 unidades) | C22: 58.65 | D22: 80 | E22: 67 | F22: 67 | G22: =(1/2)/4 -> 0.13 | H22: 0.01 | I22: 0.67
A23: 2.11 | B23: 2.11. Colete Balístico Nível II, conforme Portaria 191 M.T.E | C23: 509 | D23: 279 | E23: 359.9 | F23: 359.9 | G23: =1/2 -> 0.5 | H23: 0.04 | I23: 14.4
A24: 2.12 | B24: 2.12. Lanterna portátil com 02 (duas) pilhas | C24: 59 | D24: 79 | E24: 36.9 | F24: 59 | G24: =1/2 -> 0.5 | H24: 0.04 | I24: 2.36
A25: 2.13 | B25: 2.13. Pilhas pequenas para lanternas (2 unidades) | C25: 6.9 | D25: 4.35 | E25: 5.9 | F25: 5.9 | G25: 2 | H25: 0.17 | I25: 1
A26: 2.14 | B26: 2.14. Sistema de comunicação digital
A27: 2.15 | B27: 2.15. Rádio retransmissor (base fixa) | C27: 871.74 | D27: 640 | E27: 800 | F27: 800 | G27: =(1/5)/4 -> 0.05 | H27: 0.004 | I27: 3.2
A28: 2.16 | B28: 2.16. Rádio retransmissor (base móvel) | C28: 457.4 | D28: 399.9 | E28: 399.88 | F28: 399.9 | G28: 0 | H28: 0 | I28: 0
A29: 2.17 | B29: 2.17. Rádio retransmissor (portátil) | C29: 174.6 | D29: 178.48 | E29: 223.85 | F29: 178.48 | G29: 0 | H29: 0 | I29: 0
A30: 2.18 | B30: 2.18. Capacete. | C30: 61.93 | D30: 56.43 | E30: 28 | F30: 56.43
A31: 2.19 | B31: 2.19. Joelheira. | C31: 69 | D31: 69.9 | E31: 58 | F31: 69
A32: 2.20 | B32: 2.20. Cotoveleira. | C32: 18.37 | D32: 16.89 | E32: 24.9 | F32: 18.37
